fUST/lending_fUST_20240511
["ID","MTS","AMOUNT","RATE_DAILY","PERIOD"]
[326812549,1715414485812,154.84515485,0.00014669,2]
[326812550,1715414498162,1500.0,0.00015,2]
[326812551,1715414502247,154.84515485,0.00014669,2]
[326812552,1715414508785,19219.54262117,0.00014669,2]
[326812553,1715414523781,235.91132155,0.00014669,2]
[326812554,1715414528830,19219.54262117,0.00014669,2]
[326812555,1715414546807,19223.65216977,0.00014669,2]
[326812556,1715414566981,19223.65216977,0.00014669,2]
[326812561,1715414604812,608.93680983,0.00014669,2]
[326812586,1715414931110,281.84396372,0.00014669,2]
[326812588,1715414957093,16170.0059683,0.00014669,2]
[326812589,1715414959042,281.09538641,0.00014669,2]
[326812591,1715414977035,16129.80983779,0.00014669,2]
[326812592,1715414979036,343.17299185,0.00014669,2]
[326812598,1715414997042,4710.7981936,0.00014669,2]
[326812608,1715415031736,-208.42845868,0.00015597,2]
[326812609,1715415031745,-9387.04651107,0.00016667,2]
[326812610,1715415031754,-24900.0,0.00016668,2]
[326812611,1715415031763,-741.93532168,0.00017072,2]
[326812613,1715415031772,-231.772704,0.00017172,2]
[326812615,1715415031781,-263.9837175,0.00017326,2]
[326812617,1715415031790,-219.70516785,0.00018,2]
[326812619,1715415031799,-383.0399921,0.00018107,2]
[326812620,1715415031807,-150.0,0.00018189,2]
[326812622,1715415031816,-150.0,0.000189,2]
[326812624,1715415031825,-10131.52813396,0.00018998,2]
[326812626,1715415031834,-179.541506,0.00019178,2]
[326812628,1715415031842,-179.5415075,0.00019178,2]
[326812629,1715415031851,-306.5617653,0.00019292,2]
[326812630,1715415031861,-1000.0,0.00019736,2]
[326812631,1715415031869,-214.88302875,0.00019795,2]
[326812632,1715415031878,-214.88302873,0.0001982,2]
[326812633,1715415031887,-214.88302873,0.00019844,2]
[326812634,1715415031896,-214.88302873,0.00019869,2]
[326812635,1715415031904,-214.88302873,0.00019893,2]
[326812636,1715415031913,-509.79807509,0.00019893,2]
[326812637,1715415031922,-500.0,0.00019893,2]
[326812638,1715415031931,-45873.60799081,0.00019894,2]
[326812639,1715415031942,-580.86180648,0.00019894,2]
[326812858,1715415045808,-5361.02305521,0.00019894,2]
[326812882,1715415099625,203.01914328,0.00014857,2]
[326812883,1715415300494,203.01914328,0.00014971,2]
[326812886,1715415943823,701.68383945,9.999e-05,2]
[326812923,1715416231971,-153.23142217,0.00016794,2]
[326812925,1715416231980,-9786.06922791,0.00018,2]
[326813142,1715416243270,-5221.83077209,0.00018,2]
[326813143,1715416243281,-9387.04651107,0.00018486,2]
[326813144,1715416243290,-8953.7411588,0.00018487,2]
[326813145,1715416243299,-150.0,0.000189,2]
[326813146,1715416243308,-208.42845868,0.00019543,2]
[326813147,1715416243317,-155.6941611,0.000196,2]
[326813148,1715416243326,-153.0,0.000197,2]
[326813149,1715416243335,-153.0,0.000197,2]
[326813150,1715416243344,-153.0,0.000197,2]
[326813151,1715416243353,-179.53935184,0.00019797,2]
[326813152,1715416243361,-179.53935184,0.00019818,2]
[326813153,1715416243370,-179.53935184,0.00019839,2]
[326813154,1715416243380,-179.53935184,0.0001986,2]
[326813155,1715416243389,-701.21061069,0.00019894,2]
[326813156,1715416243399,-11295.97495428,0.00019895,2]
[326813157,1715416243408,-12851.00889791,0.00019896,2]
[326813173,1715416619512,5022.44103913,0.000125,2]
[326813174,1715416647536,1883.13174552,9.999e-05,2]
[326813175,1715416650469,154.82968734,0.000125,2]
[326813176,1715416651356,364.53780774,0.000125,2]
[326813177,1715416652683,154.82968734,0.000125,2]
[326813178,1715416665396,366.0799668,0.000125,2]
[326813179,1715416668698,155.41161437,0.000125,2]
[326813180,1715416672776,229.62163122,0.000125,2]
[326813181,1715416711812,2978.80702709,0.000125,2]
[326813182,1715416711837,13151.0028107,0.000125,2]
[326813183,1715416720605,14032.79853054,0.000125,2]
[326813184,1715416729836,16129.80983779,0.000125,2]
[326813185,1715416735947,285.41103408,0.00015,2]
[326813186,1715416747808,1977.66373339,0.000125,2]
[326813187,1715416753926,285.41103408,0.00015,2]
[326813188,1715416771932,285.41103408,0.00015,2]
[326813189,1715416797918,285.41103408,0.00015,2]
[326813190,1715416815931,285.41103408,0.00015,2]
[326813191,1715416833920,285.41103408,0.00015,2]
[326813192,1715416855926,409.0770233,0.00015,2]
[326813195,1715416950953,701.68383945,9.999e-05,2]
[326813196,1715417033155,340.56,0.00010959,2]
[326813197,1715417050584,2686.92892201,0.00013499,2]
[326813198,1715417077440,196.71349201,0.000136,2]
[326813199,1715417346761,292.30699244,9.999e-05,2]
[326813211,1715417432258,-701.68383945,0.00017996,2]
[326813212,1715417432268,-9387.04651107,0.00017997,2]
[326813213,1715417432277,-155.78707021,0.00017998,2]
[326813214,1715417432286,-154.98468963,0.00017998,2]
[326813215,1715417432295,-586.45376875,0.00017998,2]
[326813216,1715417432305,-273.52788847,0.00017998,2]
[326813217,1715417432314,-277.44284843,0.00017998,2]
[326813218,1715417432324,-293.23985022,0.00017998,2]
[326813219,1715417432333,-281.59685807,0.00017998,2]
[326813220,1715417432342,-92024.19315793,0.00018,2]
[326813221,1715417432351,-191.40557243,0.000188,2]
[326813222,1715417432360,-150.0,0.000189,2]
[326813223,1715417432370,-157.63052802,0.00018901,2]
[326813224,1715417432379,-886.0,0.000196,2]
[326813225,1715417432388,-208.42845868,0.00019617,2]
[326813226,1715417432398,-500.0,0.00019859,2]
[326813228,1715417432407,-500.0,0.00019859,2]
[326813230,1715417432417,-500.0,0.00019859,2]
[326813231,1715417432426,-500.0,0.00019859,2]
[326813233,1715417432436,-500.0,0.00019859,2]
[326813235,1715417432445,-292.65145913,0.00019859,2]
[326813237,1715417432455,-27220.9296085,0.0001986,7]
[326813238,1715417432464,-55555.0,0.0001986,2]
[326813239,1715417432474,-153.0,0.0001989,2]
[326813241,1715417432484,-424.82507512,0.00019892,2]
[326813242,1715417432493,-200.64863062,0.00019892,2]
[326813243,1715417432502,-1689.54174305,0.00019892,2]
[326813244,1715417432511,-286.21324352,0.00019892,2]
[326813245,1715417432520,-816.46166498,0.00019893,2]
[326813246,1715417432529,-21716.91203988,0.00019894,2]
[326813247,1715417432538,-151.0,0.00019894,2]
[326813248,1715417432548,-151.0,0.00019894,2]
[326813249,1715417432557,-151.0,0.00019894,2]
[326813250,1715417432566,-154.8915759,0.00019898,2]
[326813251,1715417432575,-2674.97171764,0.00019898,2]
[326813252,1715417432584,-317.12009931,0.00019898,2]
[326813253,1715417432593,-1168.52430027,0.00019898,2]
[326813254,1715417432602,-155.29060798,0.00019898,2]
[326813255,1715417432612,-16556.60790114,0.00019899,7]
[326813256,1715417432621,-154.83449871,0.00019899,2]
[326813257,1715417432631,-14346.88185713,0.00019899,2]
[326813258,1715417432643,-34393.78606692,0.00019899,2]
[326813259,1715417432653,-151.0,0.00019899,2]
[326813260,1715417432664,-151.0,0.00019899,2]
[326813261,1715417432675,-151.0,0.00019899,2]
[326813262,1715417432683,-151.0,0.00019899,2]
[326813263,1715417432692,-151.0,0.000199,2]
[326813264,1715417432701,-2000.0,0.000199,2]
[326813265,1715417432713,-2104.72344677,0.00019957,2]
[326813266,1715417432722,-1901.35170892,0.00019958,2]
[326813267,1715417432732,-24163.69585915,0.0001996,2]
[326813268,1715417432745,-15050.80145888,0.0001996,2]
[326813363,1715417441620,-403.46577633,0.0001996,2]
[326813364,1715417441661,-46555.5343774,0.0001996,2]
[326813365,1715417441674,-151.0,0.0001996,2]
[326813366,1715417441684,-151.0,0.0001996,2]
[326813367,1715417441693,-151.0,0.0001996,2]
[326813368,1715417441702,-151.0,0.0001996,2]
[326813369,1715417441713,-155.01783467,0.00019993,2]
[326813370,1715417441722,-1097.57358655,0.00019996,2]
[326813371,1715417441733,-238.47421384,0.00019998,2]
[326813372,1715417441743,-245.0329221,0.00019998,2]
[326813373,1715417441756,-409.8188838,0.00019998,2]
[326813374,1715417441767,-2411.80437453,0.00019998,2]
[326813375,1715417441776,-20315.51703998,0.0002,2]
[326813376,1715417441785,-380.05955451,0.0002,2]
[326813377,1715417441794,-25398.73622688,0.0002,2]
[326813439,1715417443469,-157.63052802,0.00018961,2]
[326813440,1715417443478,-2000.0,0.000199,2]
[326813441,1715417443488,-9387.04651107,0.00019959,2]
[326813442,1715417443497,-21653.05589858,0.0002,2]
[326813544,1715418145067,241.94041048,9.999e-05,2]
[326813545,1715418154108,701.68383945,9.999e-05,2]
[326813547,1715418596766,241.94041048,9.999e-05,2]
[326813548,1715418604644,701.68383945,9.999e-05,2]
[326813549,1715418613969,-187.1127011,0.00015105,2]
[326813786,1715418704687,250.0,0.0001413,2]
[326813788,1715418796498,420.18262,0.00014121,2]
[326813789,1715418881619,-567.81378447,0.00015059,2]
[326813790,1715418922878,-241.94041048,0.00015058,2]
[326813791,1715418935497,-575.00185176,0.00015057,2]
[326813793,1715419038329,744.20727983,0.00014968,2]
[326813794,1715419091955,159.99397363,0.00014957,2]
[326813795,1715419108651,935.8981249,0.0001409,2]
[326813796,1715419169416,24870.0,0.0001409,2]
[326813797,1715419188098,-241.94041048,0.00015056,2]
[326813799,1715419229154,651.18136986,0.00014968,2]
[326813800,1715419234724,18740.0132096,0.0001409,2]
[326813801,1715419252285,210.09131,0.00014137,2]
[326813803,1715419286273,691.5040352,0.00014423,2]
[326813804,1715419302300,1190.66,0.0001502,2]
[326813805,1715419406744,701.68383945,9.999e-05,2]
[326813806,1715419473342,208.42845868,0.00014861,2]
[326813807,1715419505208,154.81422293,0.00014861,2]
[326813808,1715419525199,204.53673084,0.00014861,2]
[326813809,1715419544932,-241.94041048,0.00015057,2]
[326813810,1715419544954,-171.906423,0.00015058,2]
[326813811,1715419544976,-569.78369861,0.00015058,2]
[326813812,1715419544996,-258.89574201,0.00015065,2]
[326813813,1715419545016,-1578.94023336,0.00015065,2]
[326813814,1715419545038,-744.67639595,0.00015066,2]
[326813815,1715419545058,-1093.15488172,0.00015066,2]
[326813816,1715419545079,-155.05062502,0.00015066,2]
[326813817,1715419545100,-188.35225283,0.00015066,2]
[326813818,1715419545119,-567.81378447,0.00015066,2]
[326813819,1715419545140,-2393.22629167,0.00015067,2]
[326813820,1715419545161,-41518.56926088,0.00015067,2]
[326813839,1715419832825,-241.94041048,0.00015157,2]
[326813840,1715419832836,-159.99397363,0.00015158,2]
[326813841,1715419832845,-202.28150936,0.00015445,2]
[326813842,1715419832855,-621.57410653,0.00015944,2]
[326813843,1715419832866,-8765.47240454,0.00015944,2]
[326813844,1715419832875,-155.13833651,0.00015945,2]
[326813845,1715419832885,-409.82935884,0.00015945,2]
[326813846,1715419832894,-433.93383374,0.00015945,2]
[326813847,1715419832903,-294.51792014,0.00015946,2]
[326813848,1715419832913,-157.4388879,0.00016363,2]
[326813849,1715419832922,-210.09131,0.00017291,2]
[326813850,1715419832933,-1506.0149933,0.00017301,2]
[326813851,1715419832943,-185.39269354,0.00017301,2]
[326813852,1715419832952,-186.63147511,0.00017302,2]
[326813853,1715419832961,-6825.4297592,0.00017466,2]
[326813854,1715419832970,-150.0,0.00018401,2]
[326813855,1715419832979,-150.0,0.000189,2]
[326813856,1715419832989,-179.541506,0.00019178,2]
[326813857,1715419832998,-179.541506,0.00019178,2]
[326813858,1715419833008,-600.0,0.000192,2]
[326813859,1715419833017,-600.0,0.000194,2]
[326813860,1715419833026,-600.0,0.000196,2]
[326813861,1715419833035,-167.48243602,0.00019799,2]
[326813862,1715419833045,-600.0,0.000198,2]
[326813863,1715419833054,-180.50174415,0.00019898,2]
[326813864,1715419833063,-498.56073631,0.00019898,2]
[326813865,1715419833072,-1000.0,0.00019947,2]
[326813866,1715419833082,-306.6742854,0.00019977,2]
[326813867,1715419833093,-156.4023336,0.00019977,2]
[326813868,1715419833102,-35436.460355,0.00019998,2]
[326813869,1715419833111,-527.63757821,0.00019998,2]
[326813870,1715419833121,-494.54459527,0.00019998,2]
[326813871,1715419833130,-3169.45746974,0.00019998,2]
[326813872,1715419833140,-1343.90196396,0.00019998,2]
[326813873,1715419833149,-894.51331095,0.00019998,2]
[326813874,1715419833158,-500.0,0.00019999,2]
[326813875,1715419833167,-509.79807509,0.00019999,2]
[326813876,1715419833176,-198.10689146,0.0002,7]
[326813927,1715419838770,-2263.99752876,0.0002,7]
[326813966,1715419841657,-5203.74691087,0.0002,7]
[326813967,1715419842181,-371.48593418,0.0002,7]
[326813987,1715419843912,-725.75292494,0.0002,7]
[326813988,1715419843959,-4847.37461403,0.0002,7]
[326813989,1715419843968,-9768.1284504,0.0002,2]
[326813990,1715419843977,-154.94650593,0.0002,2]
[326813991,1715419843986,-675.4694684,0.0002,2]
[326813992,1715419843996,-4149.26468678,0.0002,10]
[326813993,1715419844005,-150.0,0.0002,2]
[326813994,1715419844015,-14438.59531372,0.0002,2]
[326814011,1715419847337,-0.1028994,0.00019998,2]
[326814012,1715419847348,-303.75,0.00019998,2]
[326814018,1715419943875,1624.66829227,9.999e-05,2]
[326814022,1715420206369,701.68383945,9.999e-05,2]
[326814036,1715420543697,241.94041048,9.999e-05,2]
[326814080,1715421032026,-241.94041048,0.0001682,2]
[326814082,1715421032035,-141.85941872,0.00016821,2]
[326814084,1715421032051,-322.41943471,0.00016821,2]
[326814086,1715421032062,-7952.294237,0.00016821,2]
[326814088,1715421032073,-5291.75407223,0.00016821,2]
[326814214,1715421038267,-1507.56776405,0.00016821,2]
[326814221,1715421040243,-512.51771554,0.00016821,2]
[326814222,1715421040255,-256.99799994,0.00016821,2]
[326814231,1715421040366,-1500.0343278,0.00016821,2]
[326814292,1715421043198,-4275.0,0.00016821,2]
[326814293,1715421043313,-10956.18245873,0.00016821,2]
[326814304,1715421046163,-9346.41256338,0.00016821,2]
[326814305,1715421046176,-12510.9220864,0.00016822,2]
[326814306,1715421046187,-187.1127011,0.00016845,2]
[326814307,1715421046198,-157.568483,0.00016878,2]
[326814308,1715421046209,-219.70516785,0.00018,2]
[326814309,1715421046221,-1627.74589043,0.00018573,2]
[326814310,1715421046232,-2630.39141956,0.00018573,2]
[326814311,1715421046243,-412.77576079,0.00018573,2]
[326814312,1715421046255,-222.17987839,0.00018573,2]
[326814313,1715421046266,-469.58481341,0.00018573,2]
[326814314,1715421046277,-491.91161374,0.00018574,2]
[326814315,1715421046288,-213.41882898,0.000186,2]
[326814316,1715421046299,-398.84251358,0.000187,2]
[326814317,1715421464470,241.94041048,9.999e-05,2]
[326814326,1715422045788,-241.94041048,0.00018382,2]
[326814327,1715422045813,-208.42845868,0.00018383,2]
[326814328,1715422046011,-153.23142213,0.00018538,2]
[326814329,1715422046035,-2849.0034291,0.00018585,2]
[326814330,1715422046060,-157.568483,0.00018641,2]
[326814331,1715422046084,-152.0,0.000188,2]
[326814332,1715422046108,-150.0,0.000189,2]
[326814333,1715422046131,-150.0,0.00018929,2]
[326814334,1715422046155,-163.97263572,0.00019,5]
[326814335,1715422046179,-153.0,0.00019,2]
[326814336,1715422046202,-153.0,0.00019,2]
[326814337,1715422046225,-153.0,0.00019,2]
[326814338,1715422046248,-153.0,0.00019,2]
[326814339,1715422046270,-153.0,0.00019,2]
[326814340,1715422062375,201.97416189,0.00018956,2]
[326814342,1715422107057,150.0,0.000189,2]
[326814343,1715422136831,-3616.51774793,0.0002,10]
[326814344,1715422157321,4149.26468678,0.0002,10]
[326814370,1715422232473,-179.541506,0.00019178,2]
[326814371,1715422232482,-153.0,0.000192,2]
[326814373,1715422232491,-153.0,0.000192,2]
[326814374,1715422232500,-153.0,0.000192,2]
[326814375,1715422232509,-600.0,0.000192,2]
[326814376,1715422232518,-156.0409302,0.0001937,2]
[326814377,1715422232527,-153.0,0.0001937,2]
[326814378,1715422232536,-153.0,0.0001937,2]
[326814379,1715422232546,-153.0,0.0001937,2]
[326814380,1715422232555,-153.0,0.0001937,2]
[326814381,1715422232564,-153.0,0.0001937,2]
[326814382,1715422232572,-153.0,0.0001937,2]
[326814383,1715422232580,-600.0,0.000194,2]
[326814384,1715422232589,-201.9741619,0.00019405,2]
[326814385,1715422232598,-153.0,0.00019493,2]
[326814386,1715422232607,-153.0,0.00019493,2]
[326814387,1715422232616,-153.0,0.00019493,2]
[326814388,1715422232625,-153.0,0.00019493,2]
[326814389,1715422232634,-153.0,0.00019493,2]
[326814390,1715422232643,-153.0,0.00019493,2]
[326814391,1715422232652,-153.0,0.00019493,2]
[326814392,1715422232826,-153.0,0.00019493,2]
[326814393,1715422232836,-153.0,0.00019493,2]
[326814394,1715422232845,-153.0,0.00019493,2]
[326814395,1715422232855,-600.0,0.000196,2]
[326814396,1715422232864,-167.48243601,0.00019799,2]
[326814397,1715422232874,-153.0,0.000198,2]
[326814398,1715422232883,-153.0,0.000198,2]
[326814399,1715422232892,-153.0,0.000198,2]
[326814400,1715422232901,-153.0,0.000198,2]
[326814401,1715422232912,-153.0,0.000198,2]
[326814402,1715422232922,-153.0,0.000198,2]
[326814403,1715422232931,-153.0,0.000198,2]
[326814404,1715422232940,-153.0,0.000198,2]
[326814405,1715422232949,-153.0,0.000198,2]
[326814406,1715422232958,-153.0,0.000198,2]
[326814407,1715422232968,-153.0,0.000198,2]
[326814408,1715422232977,-153.0,0.000198,2]
[326814409,1715422232986,-1185.10156608,0.000198,2]
[326814410,1715422232995,-67.48772753,0.00019866,2]
[326814411,1715422233007,-864.23706141,0.00019866,2]
[326814412,1715422233018,-161.20768773,0.00019866,2]
[326814413,1715422233028,-2860.00864593,0.0001988,2]
[326814414,1715422233041,-6665.18864653,0.0001988,2]
[326814415,1715422233052,-606.3308415,0.0001988,2]
[326814416,1715422233061,-588.99390067,0.00019899,2]
[326814417,1715422233070,-431.51901652,0.000199,2]
[326814418,1715422233079,-314.36654468,0.000199,2]
[326814419,1715422233088,-1060.78,0.0001999,3]
[326814420,1715422233097,-530.39,0.0001999,3]
[326814421,1715422233106,-265.19,0.0001999,3]
[326814422,1715422233115,-701.44722507,0.00019997,2]
[326814423,1715422233124,-295.05723116,0.00019997,2]
[326814424,1715422233134,-187.08694253,0.00019998,2]
[326814425,1715422233143,-545.62632414,0.00019998,2]
[326814426,1715422233152,-155.35271044,0.00019998,2]
[326814427,1715422233161,-1901.35170892,0.00019998,2]
[326814428,1715422233170,-2254.72344677,0.00019998,2]
[326814429,1715422233179,-4944.9155212,0.00019999,2]
[326814430,1715422233188,-34393.78606692,0.00019999,2]
[326814431,1715422233200,-14623.37276531,0.0002,7]
[326814432,1715422233209,-4459.04234303,0.0002,2]
[326814433,1715422233218,-922.5358029,0.0002,2]
[326814549,1715422243688,-3711.86230995,0.0002,2]
[326814550,1715422243697,-154.94650593,0.0002,2]
[326814551,1715422243706,-9768.1284504,0.0002,2]
[326814552,1715422243716,-675.4694684,0.0002,2]
[326814553,1715422243725,-151.0,0.0002,2]
[326814555,1715422243734,-151.0,0.0002,2]
[326814557,1715422243743,-225.308245,0.0002,2]
[326814560,1715422243751,-151.0,0.0002,2]
[326814561,1715422243760,-230.53822,0.0002,2]
[326814562,1715422243769,-151.0,0.0002,2]
[326814563,1715422243778,-151.0,0.0002,2]
[326814564,1715422243787,-151.0,0.0002,2]
[326814565,1715422243796,-151.0,0.0002,2]
[326814566,1715422243805,-165.438453,0.0002,2]
[326814567,1715422243814,-155.856606,0.0002,2]
[326814568,1715422243824,-151.0,0.0002,2]
[326814569,1715422243835,-151.456187,0.0002,2]
[326814570,1715422243843,-151.0,0.0002,2]
[326814571,1715422243852,-183.456687,0.0002,2]
[326814572,1715422243861,-151.0,0.0002,2]
[326814573,1715422243870,-151.0,0.0002,2]
[326814575,1715422243879,-109.84950406,0.0002,2]
[326814577,1715422243905,-41.15049594,0.0002,2]
[326814579,1715422243914,-151.0,0.0002,2]
[326814580,1715422243923,-153.22384,0.0002,2]
[326814581,1715422243932,-151.403726,0.0002,2]
[326814582,1715422243942,-194.592302,0.0002,2]
[326814583,1715422243951,-151.0,0.0002,2]
[326814584,1715422243960,-151.0,0.0002,2]
[326814585,1715422243969,-1004.775171,0.0002,2]
[326814586,1715422243978,-151.0,0.0002,2]
[326814587,1715422243987,-228.085513,0.0002,2]
[326814588,1715422243996,-244.38497,0.0002,2]
[326814589,1715422244005,-151.0,0.0002,2]
[326814590,1715422244014,-153.0,0.00020192,2]
[326814591,1715422244171,-153.0,0.00020192,2]
[326814592,1715422244181,-153.0,0.00020192,2]
[326814593,1715422244190,-153.0,0.00020192,2]
[326814594,1715422244200,-153.0,0.00020192,2]
[326814595,1715422244209,-153.0,0.00020192,2]
[326814596,1715422244218,-286.5544327,0.00020192,2]
[326814597,1715422244228,-153.0,0.00020192,2]
[326814598,1715422244238,-235.10182844,0.00020772,2]
[326814599,1715422244248,-447.0404404,0.00020772,2]
[326814600,1715422244257,-795.62,0.00020904,3]
[326814601,1715422244266,-301.59389788,0.00020909,2]
[326814602,1715422244276,-154.92238428,0.00020909,2]
[326814603,1715422244285,-156.97265212,0.00020909,2]
[326814604,1715422244294,-1406.31054202,0.00020912,2]
[326814605,1715422244303,-1576.51860925,0.00020912,2]
[326814606,1715422244312,-151.0,0.00020912,2]
[326814607,1715422244321,-151.0,0.00021349,2]
[326814608,1715422244330,-151.0,0.00021349,2]
[326814609,1715422244339,-167.07159,0.00021349,2]
[326814610,1715422244349,-151.0,0.00021359,2]
[326814611,1715422244358,-151.0,0.00021359,2]
[326814612,1715422244368,-151.0,0.00021359,2]
[326814613,1715422244377,-151.0,0.00021359,2]
[326814614,1715422244386,-862.15621018,0.0002136,3]
[326814622,1715422246535,-153.0,0.000198,2]
[326814623,1715422246544,-1259.40378982,0.0002136,3]
[326814624,1715422246553,-1060.78,0.0002136,3]
[326814625,1715422246562,-530.38,0.0002136,3]
[326814626,1715422246571,-166.666667,0.00021918,2]
[326814628,1715422246580,-90.26954318,0.00021918,2]
[326814630,1715422325227,201.9741619,0.00018702,2]
[326814631,1715422569427,201.9741619,0.00018905,2]
[326814634,1715422902245,285.98082131,0.00018905,2]
[326814635,1715422947990,201.9741619,0.00018939,2]
[326814636,1715423039873,244.86266094,9.9e-05,2]
[326814637,1715423122382,701.68383945,9.999e-05,2]
[326814644,1715423310000,273.96211284,0.0001,2]
[326814645,1715423338292,3058.05109011,9.999e-05,2]
[326814652,1715423432556,-436.91619258,0.00018934,2]
[326814653,1715423432565,-701.68383945,0.00018935,2]
[326814655,1715423432574,-9774.02414327,0.00018938,2]
[326814656,1715423432584,-230.1422143,0.00018939,2]
[326814657,1715423432593,-201.9741619,0.00019274,2]
[326814658,1715423432602,-3890.0452825,0.00019354,2]
[326814659,1715423432611,-201.9741619,0.00019521,2]
[326814660,1715423432620,-8698.04646151,0.0001988,2]
[326814661,1715423432629,-201.9741619,0.00019978,2]
[326814662,1715423432638,-3861.99842737,0.0002,2]
[326814663,1715423432647,-201.9741619,0.0002011,2]
[326814664,1715423432656,-201.9741619,0.00020412,2]
[326814665,1715423432665,-3343.90529574,0.00020473,2]
[326814666,1715423432675,-201.9741619,0.0002079,2]
[326814667,1715423432683,-289.77435021,0.0002081,2]
[326814668,1715423432693,-7884.1916548,0.00020909,2]
[326814669,1715423432702,-1157.9324208,0.00020909,2]
[326814670,1715423432711,-1351.03018805,0.00020909,2]
[326814671,1715423432720,-2741.11478612,0.0002091,2]
[326814672,1715423432729,-251.81857805,0.0002091,2]
[326814673,1715423432738,-1026.35919841,0.0002091,2]
[326814674,1715423432747,-171.10179152,0.0002091,2]
[326814675,1715423432756,-301.59845587,0.0002091,2]
[326814676,1715423432765,-163.71452413,0.0002091,2]
[326814677,1715423432774,-162.71094643,0.0002091,2]
[326814678,1715423432783,-521.7247285,0.0002091,2]
[326814679,1715423432793,-266.79165539,0.00020911,2]
[326814680,1715423432802,-20761.42268968,0.00020911,2]
[326814703,1715423438571,-12714.52101583,0.00020911,2]
[326814705,1715423438582,-1790.00061626,0.00020911,2]
[326814738,1715423440970,-9175.42716848,0.00020911,2]
[326814739,1715423441577,-699.9983424,0.00020911,2]
[326814806,1715423588291,412.8985133,9.999e-05,2]
[326814807,1715423763530,-231.7727045,0.00019636,2]
[326814808,1715423840713,8000.0,0.0002,10]
[326814809,1715423870396,-364.09682715,0.00019865,2]
[326814810,1715423959037,527.79883391,9.999e-05,2]
[326814811,1715424031163,-699.9983424,0.00019863,2]
[326814820,1715424633140,-364.09682715,0.00018862,2]
[326814821,1715424633150,-231.7727045,0.00018863,2]
[326814822,1715424633160,-1077.0,0.00019,2]
[326814823,1715424633169,-24890.0,0.00019378,2]
[326814824,1715424633179,-267.91982903,0.00019761,2]
[326814825,1715424633188,-2112.76866236,0.0001985,2]
[326814826,1715424633197,-19406.31611852,0.00019859,2]
[326814857,1715424643626,-160.0,0.00019391,2]
[326814858,1715424643636,-17973.45306655,0.00019859,2]
[326814859,1715424643645,-1345.46378995,0.00019861,2]
[326814860,1715424643654,-154.82577634,0.00019866,2]
[326814861,1715424643663,-448.5759298,0.00019866,2]
[326814862,1715424643673,-235.25897683,0.00019866,2]
[326814863,1715424643682,-1406.31054202,0.00019866,2]
[326814864,1715424643691,-155.22230161,0.00019866,2]
[326814865,1715424643699,-157.17897429,0.00019866,2]
[326814866,1715424643708,-1576.51860925,0.00019866,2]
[326814867,1715424643717,-529.85245678,0.00019866,2]
[326814868,1715424643727,-494.54459527,0.00019866,2]
[326814869,1715424643736,-727.82498131,0.00019866,2]
[326814899,1715424751765,-150.0,0.00041431,120]
[326814900,1715424751789,-2500.0,0.00041431,120]
[326814901,1715424751813,-453.67139372,0.00041431,30]
[326814902,1715424751838,-978.5868189,0.00041431,120]
[326814903,1715424751862,-719.17,0.00041431,30]
[326814904,1715424751885,-195198.57178738,0.00041431,30]
[326814905,1715424755674,-1000.0,0.000348,60]
[326814906,1715424755696,-172.47389585,0.00035,30]
[326814907,1715424755719,-321.25365892,0.00035,30]
[326814908,1715424755740,-37534.0,0.00035,30]
[326814909,1715424755766,-230.9668,0.00037791,30]
[326814910,1715424755788,-790.51054256,0.00038,30]
[326814911,1715424755810,-3226.36437883,0.000385,60]
[326814912,1715424755834,-5000.0,0.0004,34]
[326814913,1715424755856,-527.0,0.0004,120]
[326814914,1715424755878,-204.36130364,0.0004,120]